bitfinex-derivatives/quotes_BTCF0:USTF0_20250324
["timestamp","ask_amount","ask_price","bid_price","bid_amount"]
[1742802474109,0.2952017,86981.0,86980.0,0.1488666]
[1742802474306,0.2952017,86981.0,86980.0,0.1494666]
[1742802474707,0.30680031,86981.0,86980.0,0.1494666]
[1742802474910,0.30680031,86981.0,86980.0,0.1798666]
[1742802475916,0.30680031,86981.0,86980.0,0.1488666]
[1742802476303,0.30680031,86981.0,86980.0,0.1809666]
[1742802478613,0.30680031,86981.0,86980.0,0.066]
[1742802478817,0.30680031,86981.0,86980.0,0.1482666]
[1742802479018,0.30680031,86981.0,86980.0,0.1489066]
[1742802479320,0.30680031,86981.0,86980.0,0.1797066]
[1742802481515,0.30680031,86981.0,86980.0,0.06474]
[1742802481713,0.43680031,86981.0,86980.0,1e-08]
[1742802481908,0.1149719,86976.0,86975.0,0.0315]
[1742802482213,0.4766119,86976.0,86975.0,0.03234]
[1742802482417,0.4766119,86976.0,86975.0,0.0315]
[1742802482620,0.7067868,86976.0,86975.0,0.00088]
[1742802482913,0.1149759,86973.0,86972.0,0.11514964]
[1742802483120,0.1158159,86973.0,86972.0,0.14748964]
[1742802483710,0.29479477,86973.0,86972.0,0.14748964]
[1742802485011,0.29479477,86973.0,86972.0,0.17898964]
[1742802486007,0.06591887,86973.0,86972.0,0.17898964]
[1742802486207,0.0574734,86995.0,86983.0,0.1149626]
[1742802486412,0.0327,86988.0,86983.0,0.4757626]
[1742802486709,0.52346131,86984.0,86983.0,0.4763626]
[1742802486915,0.40850001,86984.0,86983.0,0.4763626]
[1742802487115,0.40850001,86984.0,86983.0,0.5093626]
[1742802487316,0.43960001,86984.0,86983.0,0.5093626]
[1742802487819,0.03170001,86984.0,86983.0,0.5093626]
[1742802488531,0.03170001,86984.0,86983.0,0.1485626]
[1742802488726,0.03170001,86984.0,86983.0,0.5093626]
[1742802488927,0.0311,86984.0,86983.0,0.5093626]
[1742802489321,0.0311,86984.0,86983.0,0.5417626]
[1742802491616,8e-05,86997.0,86996.0,0.1149455]
[1742802491827,0.00068001,86997.0,86996.0,0.4763455]
[1742802492128,8e-05,86997.0,86996.0,0.4763455]
[1742802492424,0.1033,87000.0,86999.0,0.1149415]
[1742802492630,0.1033,87000.0,86999.0,0.1155415]
[1742802493727,0.1033,87000.0,86999.0,0.2307015]
[1742802494328,0.1033,87000.0,86999.0,0.24206626]
[1742802497439,0.1033,87000.0,86999.0,0.1155415]
[1742802497629,0.136,87000.0,86999.0,0.2307015]
[1742802499531,0.136,87000.0,86999.0,0.1155415]
[1742802499735,0.25154021,87000.0,86999.0,0.0006]
[1742802500034,0.39678339,87000.0,86999.0,0.1155415]
[1742802500731,0.39678339,87000.0,86999.0,0.1467415]
[1742802502438,0.25154319,87000.0,86999.0,0.1467415]
[1742802502828,0.36648339,87000.0,86999.0,0.1467415]
[1742802503041,0.25154319,87000.0,86999.0,0.1467415]
[1742802503429,0.13660001,87000.0,86999.0,0.1467415]
[1742802504037,0.25154021,87000.0,86999.0,0.1467415]
[1742802504639,0.28204021,87000.0,86999.0,0.1467415]
[1742802505242,0.39698339,87000.0,86999.0,0.1467415]
[1742802514142,0.39698339,87000.0,86999.0,0.0006]
[1742802514339,0.4082746,87000.0,86999.0,0.0006]
[1742802516440,0.4082746,87000.0,86999.0,0.1155415]
[1742802517440,0.13660001,87000.0,86999.0,0.1155415]
[1742802517639,0.13660001,87000.0,86999.0,0.1807415]
[1742802518239,0.25154021,87000.0,86999.0,0.1807415]
[1742802519848,0.25154021,87000.0,86999.0,0.1482415]
[1742802525149,0.25154021,87000.0,86999.0,0.1155415]
[1742802525347,0.36648339,87000.0,86999.0,0.1155415]
[1742802526952,0.36648339,87000.0,86999.0,0.1486415]
[1742802538667,0.39898339,87000.0,86999.0,0.1486415]
[1742802560875,0.39898339,87000.0,86999.0,0.1797415]
[1742802561079,0.39898339,87000.0,86999.0,0.0648]
[1742802561283,0.39898339,87000.0,86999.0,0.1797415]
[1742802563282,0.39898339,87000.0,86999.0,0.1486415]
[1742802563593,0.51406339,87000.0,86999.0,0.1486415]
[1742802564172,0.51406339,87000.0,86999.0,0.1790415]
[1742802565370,0.51406339,87000.0,86999.0,0.0337]
[1742802565787,0.51406339,87000.0,86999.0,0.1486415]
[1742802565976,0.51406339,87000.0,86999.0,0.0337]
[1742802566887,0.51406339,87000.0,86999.0,0.1486415]
[1742802567182,0.51406339,87000.0,86999.0,0.0337]
[1742802567779,0.51406339,87000.0,86999.0,0.1486415]
[1742802568085,0.61544869,87000.0,86999.0,0.1486415]
[1742802568977,0.64584869,87000.0,86999.0,0.0337]
[1742802570686,0.54446339,87000.0,86999.0,0.0337]
[1742802572075,0.54446339,87000.0,86999.0,0.1486415]
[1742802572383,0.54446339,87000.0,86999.0,0.0337]
[1742802572585,0.54446339,87000.0,86999.0,0.1486415]
[1742802573590,0.42938339,87000.0,86999.0,0.1486415]
[1742802573777,0.54446339,87000.0,86999.0,0.1486415]
[1742802577484,0.48156339,87000.0,86999.0,0.1809415]
[1742802578193,0.10390001,87000.0,86999.0,0.1809415]
[1742802578376,0.1033,87000.0,86999.0,0.1809415]
[1742802578993,0.10390001,87000.0,86999.0,0.1809415]
[1742802580690,0.1150039,87013.0,87008.0,0.1149296]
[1742802580896,0.0575416,87013.0,87010.0,0.1723871]
[1742802581191,0.1481243,87012.0,87011.0,0.0309]
[1742802581389,0.26386748,87012.0,87011.0,0.1766456]
[1742802581888,0.14894318,87012.0,87011.0,0.1766456]
[1742802582092,0.26386748,87012.0,87011.0,0.1766456]
[1742802585293,0.14894318,87012.0,87011.0,0.1766456]
[1742802585486,0.0008,87012.0,87011.0,0.1766456]
[1742802585900,0.1157243,87012.0,87011.0,0.1766456]
[1742802586289,0.1482243,87012.0,87011.0,0.1766456]
[1742802586490,0.0333,87012.0,87011.0,0.1766456]
[1742802587498,0.1482243,87012.0,87011.0,0.1766456]
[1742802593091,0.1794243,87012.0,87011.0,0.1766456]
[1742802598493,0.1794243,87012.0,87011.0,0.1457456]
[1742802598693,0.1794243,87012.0,87011.0,0.1768456]
[1742802600699,0.29435163,87012.0,87011.0,0.1457456]
[1742802609010,0.30336317,87012.0,87011.0,0.10981375]
[1742802609902,0.65515163,87012.0,87011.0,0.00072]
[1742802610102,0.1149283,87009.0,87008.0,0.0574648]
[1742802610304,0.1157283,87009.0,87008.0,0.0581848]
[1742802610904,0.29355563,87009.0,87008.0,0.0581848]
[1742802611209,0.30490981,87009.0,87008.0,0.0581848]
[1742802611515,0.30490981,87009.0,87008.0,0.0574648]
[1742802612511,0.30490981,87009.0,87008.0,0.0582248]
[1742802613718,0.30490981,87009.0,87008.0,0.0581848]
[1742802615301,0.30490981,87009.0,87008.0,0.00072]
[1742802615617,0.1149309,87007.0,87006.0,0.1149319]
[1742802615817,0.1156509,87007.0,87006.0,0.1156919]
[1742802616515,0.23058219,87007.0,87006.0,0.1782919]
[1742802617314,0.00072,87007.0,87006.0,0.1782919]
[1742802617507,0.0326,87009.0,87008.0,0.1149296]
[1742802617711,0.03332,87009.0,87008.0,0.4757296]
[1742802618017,0.03332,87009.0,87008.0,0.4764896]
[1742802618018,0.0326,87009.0,87008.0,0.4764896]
[1742802618214,0.03332,87009.0,87008.0,0.4764896]
[1742802618419,0.1149236,87013.0,87012.0,0.1149243]
[1742802618621,0.1469436,87013.0,87012.0,0.1156443]
[1742802618820,0.1792436,87013.0,87012.0,0.1156443]
[1742802619009,0.1469436,87013.0,87012.0,0.1156443]
[1742802619210,0.1469436,87013.0,87012.0,0.1793443]
[1742802619612,0.1792436,87013.0,87012.0,0.1793443]
[1742802622522,0.1469436,87013.0,87012.0,0.1793443]
[1742802623112,0.1802436,87013.0,87012.0,0.1793443]
[1742802623724,0.1469436,87013.0,87012.0,0.1793443]
[1742802624613,0.1798436,87013.0,87012.0,0.1793443]
[1742802630314,0.06492,87013.0,87012.0,0.1793443]
[1742802630514,0.1149163,87021.0,87012.0,0.06442]
[1742802630721,0.0323,87017.0,87016.0,0.114919]
[1742802630916,0.26310472,87017.0,87016.0,0.180079]
[1742802631115,0.14818602,87017.0,87016.0,0.180079]
[1742802631315,0.14817771,87017.0,87016.0,0.180079]
[1742802631529,0.26309844,87017.0,87016.0,0.06516]
[1742802631728,0.26309844,87017.0,87016.0,0.180079]
[1742802633730,0.26309844,87017.0,87016.0,0.148379]
[1742802634930,0.26309844,87017.0,87016.0,0.180979]
[1742802638729,0.26309844,87017.0,87016.0,0.06606]
[1742802638929,0.26309844,87017.0,87016.0,0.00096]
[1742802639530,0.0574671,87005.0,86987.0,0.11492]
[1742802639833,0.2064362,87004.0,86998.0,0.00068]
[1742802640023,0.3221162,87004.0,87003.0,0.1149362]
[1742802640222,0.3221162,87004.0,87003.0,0.1156162]
[1742802640522,0.79785674,87004.0,87003.0,0.00068]
[1742802640723,0.79785674,87004.0,87002.0,0.114937]
[1742802640724,0.1149362,87003.0,87002.0,0.114937]
[1742802640930,0.14144224,87003.0,87002.0,0.114937]
[1742802641228,0.1766162,87003.0,87002.0,0.115617]
[1742802641433,0.2915541,87003.0,87002.0,0.115617]
[1742802641734,0.30296805,87003.0,87002.0,0.115617]
[1742802642122,0.30296805,87003.0,87002.0,0.179817]
[1742802644436,0.30296805,87003.0,87002.0,0.147717]
[1742802647837,0.2915541,87003.0,87002.0,0.147717]
[1742802650229,0.2915541,87003.0,87002.0,0.1590971]
[1742802650230,0.30284372,87003.0,87002.0,0.1590971]
[1742802651730,0.30284372,87003.0,87002.0,0.00068]
[1742802651931,0.30284372,87003.0,87002.0,0.1156175]
[1742802652127,0.31225671,87003.0,87002.0,0.1156175]
[1742802653041,0.31225671,87003.0,87002.0,0.1769175]
[1742802653646,0.31221675,87003.0,87002.0,0.1769175]
[1742802653833,0.31221675,87003.0,87002.0,0.1156175]
[1742802654644,0.31221675,87003.0,87002.0,0.1467175]
[1742802655237,0.32124219,87003.0,87002.0,0.1467175]
[1742802656047,0.68204219,87003.0,87002.0,0.00068]
[1742802656247,0.1149402,87000.0,86999.0,0.1460415]
[1742802656434,0.12499323,87000.0,86999.0,0.1467215]
[1742802656636,0.13401867,87000.0,86999.0,0.1467215]
[1742802657045,0.31205789,87000.0,86999.0,0.1467215]
[1742802657730,0.30303245,87000.0,86999.0,0.1778215]
[1742802658135,0.30285404,87000.0,86999.0,0.1778215]
[1742802658942,0.30285404,87000.0,86999.0,0.03178]
[1742802659241,0.1149441,86997.0,86996.0,0.1149441]
[1742802659446,0.14030731,86997.0,86996.0,0.1156241]
[1742802659749,0.20340731,86997.0,86996.0,0.1156241]
[1742802659938,0.31835049,86997.0,86996.0,0.1156241]
[1742802660339,0.31835049,86997.0,86996.0,0.00068]
[1742802660736,0.32765891,86997.0,86996.0,0.00068]
[1742802661054,0.32765891,86997.0,86995.0,0.00017244]
[1742802661055,0.1149455,86996.0,86995.0,0.00017244]
[1742802661345,0.16582854,86996.0,86995.0,0.00085244]
[1742802661546,0.22952854,86996.0,86995.0,0.00017244]
[1742802661752,0.34447569,86996.0,86995.0,0.00085244]
[1742802661952,0.34447569,86996.0,86995.0,0.00153244]
[1742802662154,0.33528107,86996.0,86995.0,0.00085244]
[1742802662454,0.45024107,86996.0,86995.0,0.00085244]
[1742802663453,0.45024107,86996.0,86995.0,0.14751924]
[1742802663754,0.45024107,86996.0,86995.0,0.14819924]
[1742802665636,0.38674107,86996.0,86995.0,0.14819924]
[1742802665842,0.27178107,86996.0,86995.0,0.14819924]
[1742802666150,0.15683557,86996.0,86995.0,0.14819924]
[1742802666353,0.16583874,86996.0,86995.0,0.14819924]
[1742802666741,0.28078424,86996.0,86995.0,0.14819924]
[1742802667240,0.27178107,86996.0,86995.0,0.15957943]
[1742802667847,0.12493557,86996.0,86995.0,0.15957943]
[1742802668039,0.00998842,86996.0,86995.0,0.15957943]
[1742802668242,0.00930842,86996.0,86995.0,0.15957943]
[1742802668445,8e-05,86997.0,86996.0,0.1149455]
[1742802668660,0.0307,87003.0,87002.0,0.1149375]
[1742802668842,0.03138,87003.0,87002.0,0.1156175]
[1742802669046,0.14632847,87003.0,87002.0,0.1156175]
[1742802669348,0.26126467,87003.0,87002.0,0.1156175]
[1742802669654,0.14632847,87003.0,87002.0,0.1156175]
[1742802669835,0.26126467,87003.0,87002.0,0.1156175]
[1742802670041,0.14632847,87003.0,87002.0,0.1156175]
[1742802672057,0.17752847,87003.0,87002.0,0.1156175]
[1742802672961,0.29246467,87003.0,87002.0,0.1156175]
[1742802673161,0.29246467,87003.0,87002.0,0.1461175]
[1742802677258,0.17752847,87003.0,87002.0,0.1461175]
[1742802677647,0.29246467,87003.0,87002.0,0.1461175]
[1742802678062,0.17752847,87003.0,87002.0,0.1461175]
[1742802678658,0.29246467,87003.0,87002.0,0.1461175]
[1742802679249,0.17752847,87003.0,87002.0,0.1461175]
[1742802679455,0.29246467,87003.0,87002.0,0.1769175]
[1742802679656,0.11492,87010.0,87002.0,0.1769175]
[1742802679657,0.23995443,87012.0,87011.0,0.1149256]
[1742802679853,0.27123444,87012.0,87011.0,0.1149256]
[1742802680056,0.27123444,87012.0,87011.0,0.1158856]
[1742802680359,0.03145245,87012.0,87011.0,0.1158856]
[1742802680550,0.14637978,87012.0,87011.0,0.1158856]
[1742802681052,0.14637978,87012.0,87011.0,0.1467856]
[1742802681759,0.26130408,87012.0,87011.0,0.1467856]
[1742802681965,0.29350408,87012.0,87011.0,0.1797856]
[1742802683265,0.29350408,87012.0,87011.0,0.19148183]
[1742802685766,0.29350408,87012.0,87011.0,0.55228183]
[1742802686868,0.29456953,87012.0,87011.0,0.19148183]
[1742802687054,0.29456953,87012.0,87011.0,0.55228183]
[1742802687464,0.29464062,87012.0,87011.0,0.55228183]
[1742802687965,0.29471171,87012.0,87011.0,0.55228183]
[1742802688163,0.29471171,87012.0,87011.0,0.19148183]
[1742802688370,0.29471171,87012.0,87011.0,0.55228183]
[1742802688667,0.2947828,87012.0,87011.0,0.55228183]
[1742802696458,0.2947828,87012.0,87011.0,0.48838183]
[1742802696660,0.2947828,87012.0,87011.0,0.1158856]
[1742802696860,0.29481605,87012.0,87011.0,0.1158856]
[1742802699167,0.29481605,87012.0,87011.0,0.00096]
[1742802699375,0.1149349,87004.0,87003.0,0.2054001]
[1742802699672,0.11553491,87004.0,87003.0,0.2060401]
[1742802699864,0.11684688,87004.0,87003.0,0.2060401]
[1742802700065,0.23177421,87004.0,87003.0,0.2060401]
[1742802700262,0.29717421,87004.0,87003.0,0.2381401]
[1742802701073,0.30622599,87004.0,87003.0,0.2381401]
[1742802702058,0.31756723,87004.0,87003.0,0.2381401]
[1742802702669,0.30851545,87004.0,87003.0,0.2381401]
[1742802703473,0.30851545,87004.0,87003.0,0.1232073]
[1742802703671,0.30851545,87004.0,87003.0,0.00064]
[1742802704070,0.30851545,87004.0,87003.0,0.1155762]
[1742802705067,0.30851545,87004.0,87003.0,0.1769762]
[1742802707779,0.29717421,87004.0,87003.0,0.1769762]
[1742802709683,0.18223931,87004.0,87003.0,0.1769762]
[1742802712973,0.18223931,87004.0,87003.0,0.18852391]
[1742802714574,0.18223931,87004.0,87003.0,0.54932391]
[1742802714886,0.18223931,87004.0,87003.0,0.5377762]
[1742802715579,0.14913931,87004.0,87003.0,0.5377762]
[1742802715783,0.1485393,87004.0,87003.0,0.5377762]
[1742802715984,0.14913931,87004.0,87003.0,0.5377762]
[1742802717182,0.14913931,87004.0,87003.0,0.54951967]
[1742802718486,0.17993931,87004.0,87003.0,0.54951967]
[1742802718877,0.00191198,87004.0,87003.0,0.54951967]
[1742802719082,0.00131197,87004.0,87003.0,0.54951967]
[1742802720879,0.03231197,87004.0,87003.0,0.54951967]
[1742802721481,0.00131197,87004.0,87003.0,0.54951967]
[1742802721682,0.03231197,87004.0,87003.0,0.54951967]
[1742802726078,0.06521197,87004.0,87003.0,0.54951967]
[1742802727582,0.09781197,87004.0,87003.0,0.54951967]
[1742802729776,0.09841198,87004.0,87003.0,0.54951967]
[1742802730777,0.09781197,87004.0,87003.0,0.54951967]
[1742802731588,0.32768477,87004.0,87003.0,0.4763762]
[1742802731889,0.32836477,87004.0,87003.0,0.4763762]
[1742802745602,0.33743044,87004.0,87003.0,0.4763762]
[1742802747092,0.337506,87004.0,87003.0,0.4763762]
[1742802749103,0.33744883,87004.0,87003.0,0.4763762]
[1742802749902,0.43888686,87004.0,87003.0,0.4763762]
[1742802751606,0.43891733,87004.0,87003.0,0.4763762]
[1742802753802,0.43891733,87004.0,87003.0,0.5089762]
[1742802754003,0.4298028,87004.0,87003.0,0.4763762]
[1742802754897,0.43891811,87004.0,87003.0,0.4763762]
[1742802756208,0.43891811,87004.0,87003.0,0.44044324]
[1742802756409,0.43891811,87004.0,87003.0,0.44116324]
[1742802756812,0.43891811,87004.0,87003.0,0.47116324]
[1742802757001,0.4298028,87004.0,87003.0,0.47116324]
[1742802757205,0.43893067,87004.0,87003.0,0.47116324]
[1742802758193,0.43892849,87004.0,87003.0,0.47116324]
[1742802758399,0.43892849,87004.0,87003.0,0.11036324]
[1742802758607,0.43892849,87004.0,87003.0,0.47116324]
[1742802759111,0.43890731,87004.0,87003.0,0.47116324]
[1742802761314,0.40630731,87004.0,87003.0,0.47116324]
[1742802761512,0.29137241,87004.0,87003.0,0.50176324]
[1742802762009,0.3972028,87004.0,87003.0,0.50176324]
[1742802763407,0.29576477,87004.0,87003.0,0.50176324]
[1742802766718,0.50197381,87004.0,87003.0,0.50176324]
[1742802769508,0.39973285,87004.0,87003.0,0.50176324]
[1742802770014,0.40874558,87004.0,87003.0,0.5370562]
[1742802770810,0.39973285,87004.0,87003.0,0.5370562]
[1742802771417,0.39973285,87004.0,87003.0,0.1762562]
[1742802771618,0.39973285,87004.0,87003.0,0.5370562]
[1742802776127,0.39973285,87004.0,87003.0,0.5064562]
[1742802776517,0.39973285,87004.0,87003.0,0.1456562]
[1742802776716,0.39973285,87004.0,87003.0,0.5064562]
[1742802786837,0.39973285,87004.0,87003.0,0.1456562]
[1742802787038,0.39973285,87004.0,87003.0,0.5064562]
[1742802790045,0.40880456,87004.0,87003.0,0.5064562]
[1742802790343,0.41792761,87004.0,87003.0,0.4705223]
[1742802790549,0.41792761,87004.0,87003.0,0.4712023]
[1742802791051,0.41792815,87004.0,87003.0,0.4712023]
[1742802791249,0.40880456,87004.0,87003.0,0.4712023]
[1742802792349,0.40880456,87004.0,87003.0,0.5041023]
[1742802792950,0.39973285,87004.0,87003.0,0.5041023]
[1742802793346,0.39973285,87004.0,87003.0,0.5357023]
[1742802796844,0.10596005,87004.0,87003.0,0.5357023]
[1742802798455,0.28399495,87004.0,87003.0,0.5357023]
[1742802798858,0.28399495,87004.0,87003.0,0.6505423]
[1742802800257,0.18002687,87004.0,87003.0,0.6505423]
[1742802803262,0.18002687,87004.0,87003.0,0.5357023]
[1742802803462,0.38629311,87004.0,87003.0,0.5028023]
[1742802804460,0.39548176,87004.0,87003.0,0.5028023]
[1742802804963,0.38629311,87004.0,87003.0,0.5028023]
[1742802805164,0.39548162,87004.0,87003.0,0.5028023]
[1742802805763,0.29991394,87004.0,87003.0,0.5028023]
[1742802806357,0.29072543,87004.0,87003.0,0.5028023]
[1742802807955,0.299783,87004.0,87003.0,0.5028023]
[1742802809556,0.29072543,87004.0,87003.0,0.5028023]
[1742802810164,0.29072543,87004.0,87003.0,0.1420023]
[1742802810365,0.29072543,87004.0,87003.0,0.5028023]
[1742802810759,0.29986596,87004.0,87003.0,0.5028023]
[1742802813355,0.29072543,87004.0,87003.0,0.5028023]
[1742802814568,0.29975196,87004.0,87003.0,0.5028023]
[1742802817170,0.29981887,87004.0,87003.0,0.5028023]
[1742802818365,0.29072543,87004.0,87003.0,0.5028023]
[1742802821462,0.17579053,87004.0,87003.0,0.5028023]
[1742802821665,0.23980424,87009.0,87008.0,0.1149296]
[1742802821865,0.24068424,87009.0,87008.0,0.5911296]
[1742802823470,0.24068424,87009.0,87008.0,0.6544296]
[1742802823875,0.30348424,87009.0,87008.0,0.6544296]
[1742802824771,0.00017244,87012.0,87011.0,0.1149256]
[1742802825077,0.06573863,87020.0,87019.0,0.1149151]
[1742802825273,0.00060001,87020.0,87019.0,0.5911551]
[1742802825475,0.30900238,87027.0,87023.0,0.1149098]
[1742802825678,0.0037,87024.0,87023.0,0.4765098]
[1742802826173,0.24443052,87024.0,87023.0,0.4765098]
[1742802826376,0.05827876,87024.0,87023.0,0.5397098]
[1742802827680,0.05827876,87024.0,87023.0,0.55124445]
[1742802829477,0.0008,87024.0,87023.0,0.55124445]
[1742802829681,8e-05,87025.0,87024.0,0.1149085]
[1742802829990,8e-05,87025.0,87024.0,0.1157885]
[1742802830281,0.0029,87030.0,87029.0,0.1149019]
[1742802830582,0.0029,87030.0,87029.0,0.2305019]
[1742802831176,0.0642,87030.0,87029.0,0.3253019]
[1742802832465,0.07325153,87030.0,87029.0,0.3253019]
[1742802833985,0.07325153,87030.0,87029.0,0.6861019]
[1742802835573,0.08228133,87030.0,87029.0,0.6861019]
[1742802835964,0.05198133,87030.0,87029.0,0.6861019]
[1742802837496,0.0429298,87030.0,87029.0,0.6861019]
[1742802838073,0.0339,87030.0,87029.0,0.6861019]
[1742802839281,0.04293218,87030.0,87029.0,0.6861019]
[1742802840588,0.04293218,87030.0,87029.0,0.6536019]
[1742802842684,0.05195086,87030.0,87029.0,0.5388019]
[1742802843380,0.0681557,87030.0,87029.0,0.5388019]
[1742802843572,0.08272914,87030.0,87029.0,0.5388019]
[1742802844189,0.08352914,87030.0,87029.0,0.5388019]
[1742802844888,0.08414721,87030.0,87029.0,0.5388019]
[1742802845287,0.08414721,87030.0,87029.0,0.6540019]
[1742802845588,0.05335148,87030.0,87029.0,0.6540019]
[1742802845884,0.05255148,87030.0,87029.0,0.6540019]
[1742802848786,0.04293218,87030.0,87029.0,0.6540019]
[1742802848969,0.05199513,87030.0,87029.0,0.6540019]
[1742802849373,0.04293218,87030.0,87029.0,0.6540019]
[1742802849572,0.05199748,87030.0,87029.0,0.6540019]
[1742802851190,0.04293218,87030.0,87029.0,0.6540019]
[1742802853078,0.04353219,87030.0,87029.0,0.6540019]
[1742802853990,0.04293218,87030.0,87029.0,0.6540019]
[1742802856488,0.0339,87030.0,87029.0,0.6540019]
[1742802870394,0.0029,87030.0,87029.0,0.6540019]
[1742802872187,0.0653,87030.0,87029.0,0.6540019]
[1742802877001,0.0653,87030.0,87029.0,1.0148019]
[1742802884804,0.07432304,87030.0,87029.0,1.0148019]
[1742802885807,0.0653,87030.0,87029.0,0.2932019]
[1742802886008,0.0661,87030.0,87029.0,1.0148019]
[1742802886191,0.0653,87030.0,87029.0,1.0148019]
[1742802887901,0.07433521,87030.0,87029.0,1.0148019]
[1742802889793,0.0743279,87030.0,87029.0,0.8996019]
[1742802889994,0.1892285,87030.0,87029.0,0.3616]
[1742802890197,0.30493206,87030.0,87029.0,0.3616]
[1742802890402,0.30493206,87030.0,87029.0,0.32567768]
[1742802890710,0.30493206,87030.0,87029.0,0.32627768]
[1742802890905,0.29590416,87030.0,87029.0,0.32627768]
[1742802891096,0.1149138,87021.0,87020.0,0.0574568]
[1742802891301,0.1156738,87021.0,87020.0,0.0580568]
[1742802891496,0.1810738,87021.0,87020.0,0.1215568]
[1742802891700,0.1803138,87021.0,87020.0,0.1215568]
[1742802892309,0.1803138,87021.0,87020.0,0.0580568]
[1742802893210,0.1803138,87021.0,87020.0,0.0006]
[1742802893414,0.1149177,87017.0,87016.0,0.114918]
[1742802893603,0.1149177,87017.0,87016.0,0.115518]
[1742802893805,0.1159177,87017.0,87016.0,0.116158]
[1742802894004,0.1159177,87017.0,87016.0,0.115558]
[1742802894206,0.32303843,87017.0,87016.0,0.115558]
[1742802897110,0.33450671,87017.0,87016.0,0.115558]
[1742802898521,0.33557332,87017.0,87016.0,0.115558]
[1742802899520,0.33450671,87017.0,87016.0,0.115558]
[1742802899821,0.33613757,87017.0,87016.0,0.115558]
[1742802902014,0.33613757,87017.0,87016.0,0.00064]
[1742802902217,1.26991987,87017.0,86997.0,0.00172411]
[1742802902410,0.1149494,86994.0,86993.0,0.1149441]
[1742802902714,0.1149494,86993.0,86992.0,0.0316]
[1742802903020,0.21104941,86993.0,86992.0,0.1471507]
[1742802903220,0.32600052,86993.0,86992.0,0.0006]
[1742802903420,0.32600052,86993.0,86992.0,0.1149507]
[1742802903726,0.31963138,86993.0,86992.0,0.1156707]
[1742802903911,0.31963138,86993.0,86992.0,0.1482707]
[1742802904216,0.31963138,86993.0,86992.0,0.1811707]
[1742802904424,0.31963138,86993.0,86992.0,0.1841707]
[1742802904609,0.31963138,86993.0,86992.0,0.1512707]
[1742802906025,0.31963138,86993.0,86992.0,0.1552707]
[1742802906215,0.32021827,86993.0,86992.0,0.1875707]
[1742802906414,0.68101827,86993.0,86992.0,0.1875707]
[1742802906617,0.64820052,86993.0,86992.0,0.1875707]
[1742802906818,0.65100516,86993.0,86992.0,0.2181707]
[1742802907313,0.65140919,86993.0,86992.0,0.2181707]
[1742802909124,0.29060919,86993.0,86992.0,0.2181707]
[1742802910415,0.65140919,86993.0,86992.0,0.2181707]
[1742802911413,0.29060919,86993.0,86992.0,0.2181707]
[1742802913222,0.28740052,86993.0,86992.0,0.2181707]
[1742802913528,0.29119538,86993.0,86992.0,0.2181707]
[1742802914310,0.29178157,86993.0,86992.0,0.2181707]
[1742802915326,0.292187,86993.0,86992.0,0.2181707]
[1742802921131,0.29277455,86993.0,86992.0,0.2181707]
[1742802921631,0.2933621,86993.0,86992.0,0.2181707]
[1742802921828,0.28740052,86993.0,86992.0,0.2181707]
[1742802922021,0.29376481,86993.0,86992.0,0.2181707]
[1742802922829,0.18681541,86993.0,86992.0,0.2181707]
[1742802923727,0.30176481,86993.0,86992.0,0.2181707]
[1742802923940,0.85966481,86993.0,86992.0,0.00772]
[1742802924120,0.1149653,86981.0,86975.0,0.0579464]
[1742802924322,0.1149719,86976.0,86975.0,0.0004599]
[1742802924529,0.1163319,86976.0,86975.0,0.0010599]
[1742802924729,0.1163319,86976.0,86975.0,0.0004599]
[1742802925031,0.1149772,86972.0,86955.0,0.00880657]
[1742802925228,0.47733721,86972.0,86967.0,0.00017244]
[1742802925426,0.1149825,86968.0,86967.0,0.00017244]
[1742802925631,0.11554251,86968.0,86967.0,0.00017244]
[1742802925827,0.1149838,86967.0,86962.0,0.27517043]
[1742802926130,0.1868081,86967.0,86962.0,0.27517043]
[1742802926321,0.30179358,86967.0,86962.0,0.27517043]
[1742802926523,0.29879358,86967.0,86962.0,0.27517043]
[1742802926830,0.29579358,86967.0,86962.0,0.27517043]
[1742802927226,0.29679358,86967.0,86962.0,0.27517043]
[1742802927553,0.55447612,86967.0,86966.0,0.20737782]
[1742802927828,0.55447612,86967.0,86958.0,0.00017244]
[1742802927829,0.1149891,86963.0,86958.0,0.00017244]
[1742802928040,0.4757917,86961.0,86958.0,0.00017244]
[1742802928227,0.6073117,86961.0,86958.0,0.00017244]
[1742802928428,0.6688117,86961.0,86958.0,0.00017244]
[1742802928625,0.79074911,86961.0,86958.0,0.00017244]
[1742802929529,0.79074911,86961.0,86960.0,0.0039]
[1742802929735,0.79074911,86961.0,86960.0,0.0059]
[1742802930638,1.19864911,86961.0,86960.0,0.0059]
[1742802931526,0.115005,86951.0,86950.0,0.0327]
[1742802931728,0.477325,86951.0,86950.0,0.0327]
[1742802931923,0.477325,86951.0,86950.0,0.1477063]
[1742802932121,0.477325,86951.0,86950.0,0.1798063]
[1742802932335,0.65423296,86951.0,86950.0,0.1798063]
[1742802932734,0.66118357,86951.0,86950.0,0.0648]
[1742802933326,0.66118357,86951.0,86950.0,0.0678]
[1742802933531,0.66118357,86951.0,86950.0,0.0698]
[1742802934346,0.67256234,86951.0,86950.0,0.1848063]
[1742802935051,0.67314897,86951.0,86950.0,0.1848063]
[1742802936434,0.67314897,86951.0,86950.0,0.0698]
[1742802937430,0.67314897,86951.0,86950.0,0.1848063]
[1742802942342,0.31234897,86951.0,86950.0,0.1848063]
[1742802942534,0.67314897,86951.0,86950.0,0.1848063]
[1742802943538,0.6617702,86951.0,86950.0,0.1848063]
[1742802948652,0.6617702,86951.0,86950.0,0.0698]
[1742802948954,0.6617702,86951.0,86950.0,0.1848063]
[1742802951354,0.4848652,86951.0,86950.0,0.1848063]
[1742802951543,0.00905724,86951.0,86950.0,0.1848063]
[1742802951744,8e-05,86952.0,86951.0,0.115005]
[1742802951944,8e-05,86952.0,86951.0,0.475805]
[1742802952248,8e-05,86952.0,86951.0,0.539805]
[1742802952760,0.05766994,86959.0,86957.0,0.1149957]
[1742802952761,0.1149968,86958.0,86957.0,0.1149957]
[1742802952946,0.11655681,86958.0,86957.0,0.1149957]
[1742802953252,0.23156345,86958.0,86957.0,0.1149957]
[1742802954354,0.23156345,86958.0,86957.0,0.1159957]
[1742802954959,0.23156345,86958.0,86957.0,0.1179957]
[1742802955147,0.23156345,86958.0,86957.0,0.1483957]
[1742802956256,0.29566345,86958.0,86957.0,0.1483957]
[1742802957355,0.31382244,86958.0,86957.0,0.1483957]
[1742802958353,0.30472983,86958.0,86957.0,0.1483957]
[1742802959149,0.29566345,86958.0,86957.0,0.1483957]
[1742802962451,0.50050509,86958.0,86957.0,0.1483957]
[1742802964354,0.50204816,86958.0,86957.0,0.1483957]
[1742802964756,0.86284816,86958.0,86957.0,0.1483957]
[1742802965969,0.89334816,86958.0,86957.0,0.1179957]
[1742802967054,0.86284816,86958.0,86957.0,0.1179957]
[1742802967453,0.86284816,86958.0,86948.0,0.11712]